Workbook

Sheet Introduction
A3: . . . . . . . . . . . . . . . . . . . . . . . . . . . . . . . . . . . . . . . . . . . . . . . . . . . . . . . . . .
A5: Guidelines For Estimating
A6: Bison Bull Finishing Costs
A7: ="For Weight Range of "&Input!E7& " -"&Input!E9& " lbs" -> For Weight Range of 750 -1100 lbs
A8: ="Based on "&Input!E5&" Head" -> Based on 300 Head
H11: Date: | J11: October, 2022
B15: This guide is designed to provide you with planning information and a format for calculating costs of production of a bison bull finishing enterprise in Manitoba. General Manitoba Agriculture recommendations are assumed in using feed and veterinary inputs. These figures provide an economic evaluation of the livestock and estimated prices required to cover all costs. Costs include labour, investment and depreciation, but do not include management costs, nor do they necessarily represent the average cost of production in Manitoba.
B23: Finishing generally refers to the feeding of bulls from backgrounding until they are ready for market on a high concentrate finishing ration. An example of a typical finishing operation would be, feed 750 pound bulls to gain 1.75 to 2.0 pounds per day for approximately 200 days to produce 1000 to 1100 pound finished feeders.
B30: These budgets may be adjusted by putting in your own figures. As a producer you are encouraged to calculate your own costs of production. Good management is assumed in that a balanced ration is being fed, livestock are on a herd health program and handling facilities are included.
B36: This tool is available as an Excel worksheet at:
B43: is also available to help
B44: determine machinery costs.
B46: Note: This budget is only a guide and is not intended as an in-depth study of the cost of production of this industry. Interpretation and use of this information is the responsibility of the user. If you need help with a budget, contact a Farm Management Specialist.

Sheet Summary
A1: ="Bison Bull Finishing Production Cost Summary "&Introduction!J11 -> Bison Bull Finishing Production Cost Summary October, 2022
A2: ="Based on "&Input!E5&" feeders, weight range "&Input!E7&" to "&Input!E9&" lbs, @ "&Input!E14&" lbs. ADG" -> Based on 300 feeders, weight range 750 to 1100 lbs, @ 1.85 lbs. ADG
A4: A. Operating Costs | E4: Cost/Head | G4: Total Cost | I4: Your Cost
A5: 1. Feed Costs
A6: 1.01 Forage | E6: =Details!E38 -> 80.4 | G6: =ROUND(E6*Input!$E$5,0) -> 24120
A7: 1.02 Grain/Concentrates | E7: =Details!E44 -> 663.3 | G7: =ROUND(E7*Input!$E$5,0) -> 198990
A8: 1.03 Salt & Minerals | E8: =Details!E55 -> 37.66 | G8: =ROUND(E8*Input!$E$5,0) -> 11298
A9: Total Feed Costs | E9: =SUM(E6:E8) -> 781.36 | G9: =SUM(G6:G8) -> 234408
A10: 2. Other Operating Costs
A11: 2.01 Feeder Cost | E11: =Details!E70 -> 1553.653846 | G11: =ROUND(E11*Input!$E$5,0) -> 466096
A12: 2.02 Straw | E12: =Details!E75 -> 8.75 | G12: =ROUND(E12*Input!$E$5,0) -> 2625
A13: 2.03 Veterinary Medicine & Supplies | E13: =Details!E97 -> 5.74 | G13: =ROUND(E13*Input!$E$5,0) -> 1722
A14: 2.04 Annual Fuel & Repair Costs | E14: =Details!E123 -> 21.924 | G14: =ROUND(E14*Input!$E$5,0) -> 6577
A15: 2.05 Utilities | E15: =Details!E128 -> 5.64 | G15: =ROUND(E15*Input!$E$5,0) -> 1692
A16: 2.06 Trucking Costs | E16: =Details!E134 -> 105 | G16: =ROUND(E16*Input!$E$5,0) -> 31500
A17: 2.07 Insurance | E17: =Details!E148 -> 17.43 | G17: =ROUND(E17*Input!$E$5,0) -> 5229
A18: 2.08 Manure Removal | E18: =Details!E157 -> 23.6608155 | G18: =ROUND(E18*Input!$E$5,0) -> 7098
A19: 2.09 Barn & Office Supplies | E19: =Details!E162 -> 4.67 | G19: =ROUND(E19*Input!$E$5,0) -> 1401
A20: 2.10 Death Loss | E20: =Details!E170 -> 9.94 | G20: =ROUND(E20*Input!$E$5,0) -> 2982
A21: Subtotal Operating Costs | E21: =SUM(E9:E20) -> 2537.768662 | G21: =SUM(G11:G20)+G9 -> 761330
A22: 2.11 Operating Interest | E22: =Details!E178 -> 86.4079726 | G22: =ROUND(E22*Input!$E$5,0) -> 25922
A23: Total Operating Costs | E23: =E21+E22 -> 2624.176634 | G23: =G21+G22 -> 787252
A25: B. Fixed Costs
A26: 3. Depreciation
A27: 3.01 Buildings | E27: =Details!E211 -> 14.33 | G27: =ROUND(E27*Input!$E$5,0) -> 4299
A28: 3.02 Equipment | E28: =Details!E218 -> 4.27 | G28: =ROUND(E28*Input!$E$5,0) -> 1281
A29: 3.03 Machinery | E29: =Details!E225 -> 7.54 | G29: =ROUND(E29*Input!$E$5,0) -> 2262
A30: 4. Investment
A31: 4.01 Buildings | E31: =Details!E236 -> 4.3 | G31: =ROUND(E31*Input!$E$5,0) -> 1290
A32: 4.02 Machinery & Equipment | E32: =Details!E244 -> 4.76 | G32: =ROUND(E32*Input!$E$5,0) -> 1428
A33: Total Fixed Costs | E33: =SUM(E27:E32) -> 35.2 | G33: =SUM(G27:G32) -> 10560
A35: Total Operating and Fixed Costs | E35: =E23+E33 -> 2659.376634 | G35: =G23+G33 -> 797812
A37: C. Labour | E37: =Details!E248 -> 78 | G37: =E37*Input!$E$5 -> 23400
A39: Total Cost of Production | E39: =E35+E37 -> 2737.376634 | G39: =G35+G37 -> 821212
A41: Profitability and Breakeven Analysis
A43: Estimated Farmgate | E43: Per Head | G43: Total
A44: =" Gross Revenue @ $"&Input!E10&"/cwt market price" -> Gross Revenue @ $200/cwt market price | E44: =Breakeven!F47 -> 2024 | G44: =ROUND(E44*Input!E5,0) -> 607200
A46: Operating Expense Ratio | E46: =SUM(E23/E44) -> 1.296529958
D49: Breakeven Purchase | G49: Breakeven Selling | I49: Breakeven Selling
D50: Price ($/cwt) @ | G50: Price ($/cwt) @ | I50: Price ($/lb)
D51: ="$"&Input!E10&"/cwt market price" -> $200/cwt market price | G51: ="$"&Input!E8&"/cwt feeder price" -> $205/cwt feeder price | I51: Dressed
A52: Operating Costs | D52: =Breakeven!F50*100 -> 127.1302949 | G52: =Breakeven!F30*100 -> 259.3059915 | I52: =G52/((Input!$E$15)) -> 4.549227922
A53: Operating Costs & Labour | D53: =Breakeven!F57*100 -> 116.7302949 | G53: =Breakeven!F34*100 -> 267.0135014 | I53: =G53/((Input!$E$15)) -> 4.684447393
A54: Operating & Fixed Costs | D54: =Breakeven!F64*100 -> 122.4369616 | G54: =Breakeven!F38*100 -> 262.7842524 | I54: =G54/((Input!$E$15)) -> 4.610250042
A55: Total Costs | D55: =Breakeven!F71*100 -> 112.0369616 | G55: =Breakeven!F42*100 -> 270.4917623 | I55: =G55/((Input!$E$15)) -> 4.745469514
D57: Cost per lb of | G57: Marginal Returns per head
D58: gain sold ($/cwt) | G58: ="@ $"&Input!E10&"/cwt market price" -> @ $200/cwt market price
A59: Feed Costs | D59: =Breakeven!F6*100 -> 274.1614035 | G59: =E44-E11-E9 -> -311.0138462
A60: Operating Costs | D60: =Breakeven!F11*100 -> 375.6220309 | G60: =Breakeven!F47-Summary!E23 -> -600.1766343
A61: Operating Costs & Labour | D61: =Breakeven!F16*100 -> 402.990452 | G61: =Breakeven!F47-(E23+E37) -> -678.1766343
A62: Operating & Fixed Costs | D62: =Breakeven!F21*100 -> 387.9729081 | G62: =Breakeven!F47-(E35) -> -635.3766343
A63: Total Costs | D63: =Breakeven!F26*100 -> 415.3413292 | G63: =Breakeven!F47-(E39) -> -713.3766343
A65: Note: This budget is only a guide and is not intended as an in-depth study of the cost of production of this industry. Interpretation and utilization of this information is the responsibility of the user. No liability for decisions based on this publication is assumed.

Sheet Risk Analysis
A1: Risk & Sensitivity Analysis (Stress Test)
A2: A. Operating Costs
B3: Feed cost | C3: =Summary!E9 -> 781.36
B4: Weanling cost | C4: =Summary!E11 -> 1553.653846
B5: Other Operating Costs | C5: =Summary!E23-Summary!E11-Summary!E9 -> 289.1627881
B6: Subtotal | C6: =SUM(C3:C5) -> 2624.176634
A7: B. Fixed Costs | C7: =Summary!E33 -> 35.2
A8: C. Labour | C8: =Summary!E37 -> 78
A9: Total Costs | C9: =SUM(C6:C8) -> 2737.376634
A11: Estimated Farmgate
B12: Price ($ per cwt) | C12: =Input!E10 -> 200
B15: Percent Market Price Change | C15: -0.1
B16: Percent Feed Cost Change | C16: 0.1
B17: Percent Feeder Cost Change | C17: 0.05
C20: Per Head
B21: Market Price ($ per cwt) | C21: =SUM(C12*(1+C15)) -> 180
B22: Feed Cost | C22: =SUM(C3+(C3*C16)) -> 859.496
B23: Feeder Cost | C23: =SUM(C4+(C4*C17)) -> 1631.336538
A25: ="Stress Test Scenario = Market Price "&IF(C15<0,"Down","Up")&" "&ABS(C15*100)&"%, Feed Price "&IF(C16<0,"Down","Up")&" "&ABS(C16*100)&"% and Feeder Cost "&IF(C17<0,"Down","Up")&" "&ABS(C17*100)&"%" -> Stress Test Scenario = Market Price Down 10%, Feed Price Up 10% and Feeder Cost Up 5%
B26: Operating Costs | C26: =SUM(C5+C22+C23) -> 2779.995327
B27: Total Costs | C27: =C7+C8+C26 -> 2893.195327
B28: Gross Revenue / feeder | C28: =(Breakeven!F45/100)*'Risk Analysis'!C21 -> 1821.6
B29: Marginal Returns
B30: Over Operating Costs | C30: =SUM(C28-C26) -> -958.3953266
B31: Over Operating & Labour Costs | C31: =SUM(C28-C26-C8) -> -1036.395327
B32: Over Total Costs (Net Profit) | C32: =SUM(C28-C27) -> -1071.595327
B34: Operating Expense Ratio | C34: =SUM(C26/C28) -> 1.526128308
A36: Estimated Breakeven Canadian Dollar Analysis*
C38: ="Est. Market Price ($/cwt Cdn) @ "&TEXT(Input!E11,"0.0000")&" Cdn per USD" -> Est. Market Price ($/cwt Cdn) @ 0.7300 Cdn per USD
C39: =SUM($E$39-10) -> 190 | D39: =SUM($E$39-5) -> 195 | E39: =Input!E10 -> 200 | F39: =SUM($E$39+5) -> 205 | G39: =SUM($E$39+10) -> 210
A40: Breakeven CDN Dollar ($1 Cdn = $ USD)
B41: Operating Costs | C41: =SUM((C39/100)*Breakeven!$F$45*Input!$E$11)/Summary!$E$23 -> 0.5348892989 | D41: =SUM((D39/100)*Breakeven!$F$45*Input!$E$11)/Summary!$E$23 -> 0.548965333 | E41: =SUM((E39/100)*Breakeven!$F$45*Input!$E$11)/Summary!$E$23 -> 0.5630413672 | F41: =SUM((F39/100)*Breakeven!$F$45*Input!$E$11)/Summary!$E$23 -> 0.5771174014 | G41: =SUM((G39/100)*Breakeven!$F$45*Input!$E$11)/Summary!$E$23 -> 0.5911934356
B42: Operating & Labour Costs | C42: =SUM((C39/100)*Breakeven!$F$45*Input!$E$11)/(Summary!$E$23+Summary!$E$37) -> 0.5194493884 | D42: =SUM((D39/100)*Breakeven!$F$45*Input!$E$11)/(Summary!$E$23+Summary!$E$37) -> 0.5331191091 | E42: =SUM((E39/100)*Breakeven!$F$45*Input!$E$11)/(Summary!$E$23+Summary!$E$37) -> 0.5467888299 | F42: =SUM((F39/100)*Breakeven!$F$45*Input!$E$11)/(Summary!$E$23+Summary!$E$37) -> 0.5604585506 | G42: =SUM((G39/100)*Breakeven!$F$45*Input!$E$11)/(Summary!$E$23+Summary!$E$37) -> 0.5741282714
B43: Operating, Fixed & Labour Costs | C43: =SUM((C39/100)*Breakeven!$F$45*Input!$E$11)/(Summary!$E$39) -> 0.5127697747 | D43: =SUM((D39/100)*Breakeven!$F$45*Input!$E$11)/(Summary!$E$39) -> 0.5262637161 | E43: =SUM((E39/100)*Breakeven!$F$45*Input!$E$11)/(Summary!$E$39) -> 0.5397576576 | F43: =SUM((F39/100)*Breakeven!$F$45*Input!$E$11)/(Summary!$E$39) -> 0.553251599 | G43: =SUM((G39/100)*Breakeven!$F$45*Input!$E$11)/(Summary!$E$39) -> 0.5667455405
A45: ="Breakeven Canadian Dollar = (Est. Market Price ($/lb) x Shrunk Wt. (lbs) x $ Cdn per USD) / Cost" -> Breakeven Canadian Dollar = (Est. Market Price ($/lb) x Shrunk Wt. (lbs) x $ Cdn per USD) / Cost
A46: =" (eg. ($"&TEXT(E39/100,"0.00")&" x "&ROUND(Breakeven!F45,0)&" lbs x $"&TEXT(Input!E11,"0.0000")&") / $"&TEXT(Summary!E39,"0.00")&") = $"&TEXT(E43,"0.0000") -> (eg. ($2.00 x 1012 lbs x $0.7300) / $2737.38) = $0.5398
A48: Note: This budget is only a guide and is not intended as an in depth study of the cost of production of this industry. Interpretation and utilization of this information is the responsibility of the user.

Sheet Input
A1: Bison Bull Finishing Costs - Input
B3: Herd Profile
B5: Number of Feeders Purchased | E5: 300 | F5: head
B6: Feeder Bull Mortality Rate | E6: 0.5 | F6: %
B7: Feeder Purchased Weight | E7: 750 | F7: lbs
B8: Feeder Bull Price | E8: 205 | F8: /cwt
B9: Finish Weight | E9: 1100 | F9: lbs
B10: Finish Selling Price | E10: 200 | F10: /cwt
B11: $1 Canadian Dollar | D11: ="($"&TEXT(1/E11,"#.####")&" CDN )" -> ($1.3699 CDN ) | E11: 0.73 | F11: / $1 USD
B12: Percent Shrink - finished | E12: 8 | F12: %
B13: Percent Shrink - feeder | E13: 3 | F13: %
B14: Average Daily Gain | E14: 1.85 | F14: lbs/day
B15: Dressing Percentage | E15: 57 | F15: %
B17: Days On Feed | E17: =ROUND((E9-(E7-(E7*E13/100)))/E14,0) -> 201 | F17: days
B19: Total Feed Cost per Bull | E19: =Summary!E9 -> 781.36
B20: Average Feed Cost per Day | E20: =SUM(E19/E17) -> 3.887363184
B21: Feed Cost per lb. of Gain Sold (shrunk weight) | E21: =(E19/ROUND((E9-(E9*Input!$E$12/100))-(E7-(E7*E13/100)),0)) -> 2.741614035
B23: Total Pounds of Gain | E23: =ROUND(E9-E7,0) -> 350
B24: Total Pounds of Gain (Shrunk Weight) | E24: =ROUND((E9-(E9*E12/100))-(E7-(E7*E13/100)),0) -> 285
B27: Footnote: 1 kilogram (kg) = 2.2046 pounds (lbs)
B29: Feed Costs | C29: Cost | G29: Feeder Bison Requirement | I29: Days Fed
B30: Grass Hay | C30: 100 | D30: /ton | E30: 8 | F30: lbs/day | I30: =E17 -> 201
B31: Alfalfa Grass Hay | C31: 0 | D31: /ton | E31: 0 | F31: lbs/day | I31: 0
B32: Silage | C32: 0 | D32: /ton | E32: 0 | F32: lbs/day | I32: =E17 -> 201
B33: Grain/concentrate | C33: 0.2 | D33: /lb | E33: 16.5 | F33: lbs/day | I33: =E17 -> 201
B34: Salt | C34: 0.14 | D34: /lb | E34: 9 | F34: lbs/feeder
B35: Mineral | C35: 0.91 | D35: /lb | E35: 40 | F35: lbs/feeder
B37: Other Operating Costs
B39: Straw
B40: Annual Requirement | E40: 0.125 | F40: tonnes/feeder
B41: Cost | E41: 70 | F41: /tonne
B43: Veterinary Medicine & Supplies
B44: Feeder Medication
B45: Blackleg (8 way vaccine) | E45: 0.83 | F45: /feeder
B46: Vitamin | E46: 0 | F46: /feeder
B47: Parasite Control | E47: 3.8 | F47: /feeder
B49: Herd Health Program
B50: Professional Services
B51: Total Yearly Hours | E51: 1 | F51: hours
B52: Rate | E52: 175 | F52: /hour
B54: Transportation
B55: Total Distance (round trip) | E55: 160 | F55: km
B56: Charge per km | E56: 1
B57: Number of yearly visits | E57: 1
B59: Annual Fuel & Repair Costs
A60: a) Machinery Fuel Costs - Winter Feeding
A61: Tractor with Loader PTO hp | E61: 120
A62: Diesel Fuel Cost | E62: 1.65 | F62: /litre
A63: Tractor Hours Per Day (average) | E63: 1.5 | F63: hours
A64: b) Machinery Repair (% of investment cost) | E64: 1 | F64: %
A65: c) Building & fence repair (% of investment cost) | E65: 2 | F65: %
B66: Utilities
A67: Hydro | B67: - Rate | E67: 0.09324 | F67: / kWh
B68: 15 | C68: kWh per feeder | E68: =SUM(B68*E5*E67) -> 419.58
B69: 2 | C69: 1000 watt waterer | E69: =SUM(B69*18)*(E10)*E67 -> 671.328
D70: Total Hydro | E70: =SUM(E68:E69) -> 1090.908
A71: Water | E71: 0
A72: Telephone | E72: 600
B74: Trucking to Feedlot
B75: Distance to packing plant | E75: 150 | F75: miles
B76: Trucking cost | E76: 7 | F76: /loaded mile
B77: Number of head per load | E77: 65
B79: Trucking Cost
B80: Trucking cost | C80: Rate/loaded mile | E80: 7 | F80: /loaded mile
C81: Milage, distance to market | E81: 750 | F81: miles
C82: Truck capacity # head | E82: 50 | F82: head
B84: Manure Removal
A85: Manure volume produced | E85: 0.024 | F85: m3/feeder/day
A86: Manure volume shrinkage | E86: 75 | F86: %
A87: Cost for manure removal & application | E87: 15 | F87: /cubic yard
B89: Insurance
B90: Cost per $100 Capital Invested in:
B91: Livestock | E91: 0.45
B92: Buildings & Equipment | E92: 0.4
B93: Additional Coverage for Liability | E93: 49
B95: Barn & Office Supplies
B96: Total yearly expense relating to barn | E96: 1400
B98: Operating Interest Rate | E98: 7.75 | F98: %
B99: Investment Interest Rate | E99: 3 | F99: %
B101: Footnote: cwt = hundred-weight = 100 lbs
D103: Capital Costs
D105: Original | E105: Salvage | G105: Useful
D106: Value | E106: Value | G106: Life
B107: Handling Facilities
B108: Land & Landscaping | D108: 10000
B109: Waterers | D109: 6000
B110: Squeeze, Gates & Scale | D110: 20000
B111: Well & Pressure System | D111: 8000
B112: Pens (Working & Sorting) | D112: 42000
B113: Total Building Cost | D113: =SUM(D108:D112) -> 86000 | E113: 0 | F113: % | G113: 20 | H113: years
B115: Equipment
B116: Self Feeder | D116: 27000
B117: Hay Feeders | D117: 2500
B118: Miscellaneous | D118: 2500
B119: Total Equipment Cost | D119: =SUM(D116:D118) -> 32000 | E119: 0 | F119: % | G119: 25 | H119: years
B121: Machinery
B122: Tractors & Loader ($120,000 @ 30%) | D122: 36000 | E122: 20 | F122: % | G122: 15 | H122: years
A123: Miscellaneous | D123: 20000 | E123: 20 | F123: % | G123: 10 | H123: years
B125: Total Capital Investment | D125: =D122+D119+D113 -> 154000
B127: Labour Costs
B129: Hours | E129: 3 | F129: head/year
B130: Wage | E130: 26 | F130: /hour

Sheet Details
A1: Bison Bull Finishing Cost Worksheet
A2: ="Based on "&Input!E5&" head" -> Based on 300 head
B4: Assumptions
B5: ="1. This budget assumes the weaning and/or purchase weight of bison bull calves to be approximately "&Input!E7&" lbs. Finish weight would be assumed to be "&Input!E9&" lbs." -> 1. This budget assumes the weaning and/or purchase weight of bison bull calves to be approximately 750 lbs. Finish weight would be assumed to be 1100 lbs.
B8: ="2. This budget assumes a shrink (lot to slaughter plant) of "&Input!E12&"%. Shrunk Weight weight = "&ROUND(Input!E9-(Input!E9*(Input!E12/100)),0)&" lbs." -> 2. This budget assumes a shrink (lot to slaughter plant) of 8%. Shrunk Weight weight = 1012 lbs.
B11: ="3. Average Daily Gain = "&Input!E14&" lbs per day. " -> 3. Average Daily Gain = 1.85 lbs per day.
B13: ="4. Time frame from start to finish is approximately "&Input!E17&" days, "&Input!I30&" days on finishing ration and moderate quality hay and "&Input!I31&" days with supplemental good quality hay." -> 4. Time frame from start to finish is approximately 201 days, 201 days on finishing ration and moderate quality hay and 0 days with supplemental good quality hay.
B16: 5. Grain ration is prepared (minerals and salt included).
B18: ="6. This budget is based an a finishing enterprise of "&Input!E5&" bulls." -> 6. This budget is based an a finishing enterprise of 300 bulls.
B20: A. Operating Costs | J20: Your Cost
B21: 1. Feed Costs
B22: 1.01 Forage
C23: Grass Hay | E23: =Input!I30 -> 201 | G23: days on ration
D24: x | E24: =Input!E30 -> 8 | G24: lbs/feeder/day
D25: x | E25: =Input!C30 -> 100 | G25: /ton
D26: = | E26: =ROUND((E23*E24)*E25/2000,2) -> 80.4 | G26: /feeder
C28: Other Hay | E28: =Input!I31 -> 0 | G28: days on hay
D29: x | E29: =Input!E31 -> 0 | G29: lbs/feeder/day
D30: x | E30: =Input!C31 -> 0 | G30: /ton
D31: = | E31: =(E28*E29)*E30/2000 -> 0 | G31: /feeder
C33: Silage | E33: =Input!I32 -> 201 | G33: days on hay
D34: x | E34: =Input!E32 -> 0 | G34: lbs/feeder/day
D35: x | E35: =Input!C32 -> 0 | G35: /ton
D36: = | E36: =(E33*E34)*E35/2000 -> 0 | G36: /feeder
D38: = | E38: =E26+E31+E36 -> 80.4 | G38: /feeder
B40: 1.02 Grain/Concentrate
E41: =Input!I33 -> 201 | G41: days on feed
D42: x | E42: =Input!E33 -> 16.5 | G42: lbs/feeder/day
D43: x | E43: =Input!C33 -> 0.2 | G43: /lb
D44: = | E44: =SUM(E41*E42*E43) -> 663.3 | G44: /feeder
B46: 1.03 Salt & Minerals
E47: =Input!E34 -> 9 | G47: lbs salt/feeder
D48: x | E48: =Input!C34 -> 0.14 | G48: $/lb
D49: = | E49: =E47*E48 -> 1.26 | G49: /feeder
E51: =Input!E35 -> 40 | G51: lbs mineral/feeder
D52: x | E52: =Input!C35 -> 0.91 | G52: $/lb
D53: = | E53: =E51*E52 -> 36.4 | G53: /feeder
D55: = | E55: =E49+E53 -> 37.66 | G55: /feeder
B57: 2. Other Operating Costs
B59: 2.01 Feeder Bison Cost
E60: =Input!E7 -> 750 | G60: lbs/feeder
D61: x | E61: =Input!E8 -> 205 | G61: /cwt
D62: ÷ | E62: 100 | G62: lbs/cwt
D63: = | E63: =ROUND(E60/100*E61,2) -> 1537.5 | G63: /feeder
E65: =Input!E75 -> 150 | G65: miles
D66: x | E66: =Input!E76 -> 7 | G66: $/loaded mile
D67: ÷ | E67: =Input!E77 -> 65 | G67: head load capacity
D68: = | E68: =(E65*E66)/E67 -> 16.15384615 | G68: /feeder
D70: = | E70: =E63+E68 -> 1553.653846 | G70: /feeder
B72: 2.02 Straw
E73: =Input!E40 -> 0.125 | G73: tonnes/feeder/year
D74: x | E74: =Input!E41 -> 70 | G74: /tonne
D75: = | E75: =ROUND(E73*E74,2) -> 8.75 | G75: /feeder
B77: 2.03 Veterinary Medicine & Supplies
C78: Medication
E79: =Input!E45 -> 0.83 | G79: blackleg
D80: + | E80: =Input!E46 -> 0 | G80: vitamin
D81: + | E81: =Input!E47 -> 3.8 | G81: parasite control
D82: = | E82: =ROUND(E79+E80+E81,2) -> 4.63 | G82: /feeder
C84: Herd health program
E85: =Input!E52 -> 175 | G85: /hour charge
D86: x | E86: =Input!E51 -> 1 | G86: hours
D87: ÷ | E87: =Input!E5 -> 300 | G87: feeders
D88: = | E88: =ROUND(E85*E86/E87,2) -> 0.58 | G88: /feeder
C90: Mileage
E91: =Input!E56 -> 1 | G91: /km charge
D92: x | E92: =Input!E55 -> 160 | G92: kilometres
D93: x | E93: =Input!E57 -> 1 | G93: visits
D94: ÷ | E94: =Input!E5 -> 300 | G94: feeders
D95: = | E95: =ROUND(E91*E92*E93/E94,2) -> 0.53 | G95: /feeder
C97: Total | D97: = | E97: =E82+E88+E95 -> 5.74 | G97: /feeder
B99: 2.04 Annual Fuel & Repair Costs
B100: Machinery fuel cost
E101: =Input!E61 -> 120 | G101: PTO hp
D102: ÷ | E102: 2.5 | G102: avg HP required
D103: x | E103: 0.1665576 | G103: litres fuel/hour/hp
D104: x | E104: =Input!E63 -> 1.5 | G104: hours per day
D105: x | E105: =Input!E62 -> 1.65 | G105: diesel / litre
D106: x | E106: =Input!E17 -> 201 | G106: days on feed
E107: =IF(E106="ERROR","ERROR",ROUND(((E101/E102)*E103*E104*E105*E106),2)) -> 3977.2 | G107: annual fuel cost
D108: ÷ | E108: =Input!E5 -> 300 | G108: feeders
D109: = | E109: =IF(E106="ERROR","ERROR",SUM(E107/E108)) -> 13.25733333 | G109: /feeder
B110: Machinery repair & maintenance
E111: =Input!D122+Input!D123+Input!D119 -> 88000 | G111: machinery capital cost
D112: x | E112: =Input!E64 -> 1 | G112: % repair rate
D113: = | E113: =SUM(E111*(E112/100)) -> 880 | G113: oil, repairs & maintenance
D114: ÷ | E114: =Input!E5 -> 300 | G114: feeders
D115: = | E115: =SUM(E113/E114) -> 2.933333333 | G115: /feeder
B116: Building & fence repair
E117: =Input!D113 -> 86000 | G117: building capital cost
D118: x | E118: =Input!E65 -> 2 | G118: % repair rate
D119: = | E119: =SUM(E117*(E118/100)) -> 1720 | G119: oil, repairs & maintenance
D120: ÷ | E120: =Input!E5 -> 300 | G120: feeders
D121: = | E121: =SUM(E119/E120) -> 5.733333333 | G121: /feeder
C123: Total | D123: = | E123: =SUM(E121+E115+E109) -> 21.924 | G123: /feeder
B125: 2.05 Utilities
E126: =Input!E72+Input!E70+Input!E71 -> 1690.908 | G126: cost/year
D127: ÷ | E127: =Input!E5 -> 300 | G127: feeders
D128: = | E128: =ROUND((E126)/E127,2) -> 5.64 | G128: /feeder
B130: 2.06 Trucking Costs
E131: =Input!E80 -> 7 | G131: $/loaded mile
D132: x | E132: =Input!E81 -> 750 | G132: distance miles
D133: ÷ | E133: =Input!E82 -> 50 | G133: head load capacity
D134: = | E134: =(E131*E132)/E133 -> 105 | G134: /feeder
B136: 2.07 Insurance
E137: =Input!D113+Input!D119+Input!D122 -> 154000 | G137: building & equipment value
D138: x | E138: =Input!E92 -> 0.4 | G138: cost/$100 capital
D139: ÷ | E139: 100
D140: ÷ | E140: =Input!E5 -> 300 | G140: feeders
D141: = | E141: =ROUND(E137*E138/E139/E140,2) -> 2.05 | G141: /feeder
E143: =(Input!E7*Input!E8)/100 -> 1537.5 | G143: feeder investment
D144: x | E144: =Input!E56 -> 1 | G144: cost/$100 capital
D145: ÷ | E145: 100
D146: = | E146: =ROUND(E143*E144/E145,2) -> 15.38 | G146: /feeder
C148: Total | D148: = | E148: =E141+E146 -> 17.43 | G148: /feeder
B150: 2.08 Manure Removal
D151: = | E151: =Input!E17 -> 201 | G151: days on feed
D152: x | E152: =Input!E85 -> 0.024 | G152: m3/feeder/day
D153: = | E153: =SUM(E151*E152) -> 4.824 | G153: m3 manure volume
D154: x | E154: =Input!E86 -> 75 | G154: % volume shrink
D155: x | E155: 1.30795 | G155: yd3 per m3
D156: x | E156: =Input!E87 -> 15 | G156: yd3 manure removal cost
D157: = | E157: =SUM(E153*(1-(E154/100))*E155*E156) -> 23.6608155 | G157: /feeder
B159: 2.09 Barn & Office Supplies
E160: =Input!E96 -> 1400 | G160: total barn expenses
D161: ÷ | E161: =Input!E5 -> 300 | G161: feeders
D162: = | E162: =ROUND(E160/E161,2) -> 4.67 | G162: /feeder
B164: 2.10 Death Loss
E165: =Summary!E11 -> 1553.653846 | G165: feeder cost
D166: + | E166: =SUM(Summary!E9:E19) -> 2527.828662 | G166: maximum value
D167: - | E167: =Summary!E16 -> 105 | G167: marketing cost
D168: ÷ | E168: 2 | G168: average value
D169: x | E169: =Input!E6 -> 0.5 | G169: % mortality
D170: = | E170: =ROUND(((E165+E166-E167)/E168)*E169/100,2) -> 9.94 | G170: /feeder
B172: 2.11 Operating Interest
E173: =(Input!E7*Input!E8)/100 -> 1537.5 | G173: feeder cost
D174: + | E174: =(Summary!E9+SUM(Summary!E12:E19))/2 -> 487.0874078 | G174: ½ of feed & other costs
D175: x | E175: =Input!E98 -> 7.75 | G175: % operating interest
D176: x | E176: =Input!E17 -> 201 | G176: days on feed
D177: ÷ | E177: 365 | G177: 365 days per year
D178: = | E178: =ROUND((E173+E174)*(E175/100),2)*E176/365 -> 86.4079726 | G178: /feeder
B180: Capital Investment
B182: Handling Facilities
B183: Land & Landscaping | H183: =Input!D108 -> 10000
B184: Waterers | H184: =Input!D109 -> 6000
B185: Squeeze, Gates & Scale | H185: =Input!D110 -> 20000
B186: Well & Pressure System | H186: =Input!D111 -> 8000
B187: Pens (Working & Sorting) | H187: =Input!D112 -> 42000
B188: Total Building Cost | H188: =SUM(H183:H187) -> 86000
B190: Machinery & Equipment
B191: Self Feeder | H191: =Input!D116 -> 27000
B192: Hay Feeders & Miscellaneous | H192: =Input!D117 -> 2500
B193: Miscellaneous | H193: =Input!D118 -> 2500
B194: Tractor & Loader | H194: =Input!D122 -> 36000
B195: Miscellaneous | H195: =Input!D123 -> 20000
B196: Total | H196: =SUM(H191:H195) -> 88000
B198: Total Capital Investment | H198: =H188+H196 -> 174000
B200: B. Fixed Costs
B202: 3. Depreciation
E203: Original Cost - Salvage Value
E204: Useful Life
B206: 3.01 Buildings
E207: =Input!D113 -> 86000 | G207: original value
D208: - | E208: =(Input!E113/100)*Input!D113 -> 0 | G208: salvage value
D209: ÷ | E209: =Input!G113 -> 20 | G209: years useful life
D210: ÷ | E210: =Input!E5 -> 300 | G210: feeders
D211: = | E211: =ROUND((E207-E208)/E209/E210,2) -> 14.33 | G211: /feeder
B213: 3.02 Equipment
E214: =Input!D119 -> 32000 | G214: original value
D215: - | E215: =(Input!E119/100)*Input!D119 -> 0 | G215: salvage value
D216: ÷ | E216: =Input!G119 -> 25 | G216: years useful life
D217: ÷ | E217: =Input!E5 -> 300 | G217: feeders
D218: = | E218: =ROUND((E214-E215)/E216/E217,2) -> 4.27 | G218: /feeder
B220: 3.02 Machinery
E221: =Input!D122 -> 36000 | G221: original value
D222: - | E222: =(Details!E97/100)*Input!D122 -> 2066.4 | G222: salvage value
D223: ÷ | E223: =Input!G122 -> 15 | G223: years useful life
D224: ÷ | E224: =Input!E5 -> 300 | G224: feeders
D225: = | E225: =ROUND((E221-E222)/E223/E224,2) -> 7.54 | G225: /feeder
B226: 4. Investment
E227: Original Cost + Salvage Value x Investment Rate
E228: 2
B230: 4.01 Buildings
E231: =Input!D113 -> 86000 | G231: total building value
D232: + | E232: =Input!D113*Input!E113 -> 0 | G232: salvage value
D233: ÷ | E233: 2 | G233: average
D234: x | E234: =Input!E99 -> 3 | G234: % investment interest
D235: ÷ | E235: =Input!E5 -> 300 | G235: feeders
D236: = | E236: =ROUND((E231+E232)/E233*(E234/100)/E235,2) -> 4.3 | G236: /feeder
B238: 4.02 Machinery & Equipment
E239: =Input!D122+Input!D119+Input!D123 -> 88000 | G239: original value
D240: + | E240: =(Input!$D$116*Input!$E$119)+(Input!$D$122*Input!$E$122/100) -> 7200 | G240: salvage value
D241: ÷ | E241: 2 | G241: average
D242: x | E242: =Input!E99 -> 3 | G242: % investment interest
D243: ÷ | E243: =Input!E5 -> 300 | G243: feeders
D244: = | E244: =ROUND((E239+E240)/E241*(E242/100)/E243,2) -> 4.76 | G244: /feeder
B245: C. Labour
E246: =Input!E129 -> 3 | G246: hours/feeder/year
D247: x | E247: =Input!E130 -> 26 | G247: /hour
D248: = | E248: =ROUND(E246*E247,2) -> 78 | G248: /feeder

Sheet Breakeven
A1: Breakeven Calculations
A3: Cost per lb of gain sold (shrunk weight)
B4: Feed Costs | F4: =Summary!E9 -> 781.36 | H4: feed cost
E5: ÷ | F5: =Input!E24 -> 285 | H5: lbs gained weight
E6: = | F6: =F4/F5 -> 2.741614035 | H6: /lb (gain sold)
B8: Operating Costs | F8: =Summary!E23 -> 2624.176634 | H8: operating costs
E9: - | F9: =Summary!E11 -> 1553.653846 | H9: feeder cost
E10: ÷ | F10: =Input!E24 -> 285 | H10: lbs gained weight
E11: = | F11: =(F8-F9)/F10 -> 3.756220309 | H11: /lb (gain sold)
B13: Operating & Labour Costs | F13: =Summary!E23+Summary!E37 -> 2702.176634 | H13: operating costs
E14: - | F14: =Summary!E11 -> 1553.653846 | H14: feeder cost
E15: ÷ | F15: =Input!E24 -> 285 | H15: lbs gained weight
E16: = | F16: =(F13-F14)/F15 -> 4.02990452 | H16: /lb (gain sold)
B18: Operating & Fixed | F18: =Summary!E35 -> 2659.376634 | H18: oper. & fixed costs
E19: - | F19: =Summary!E11 -> 1553.653846 | H19: feeder cost
E20: ÷ | F20: =Input!E24 -> 285 | H20: lbs gained weight
E21: = | F21: =(F18-F19)/F20 -> 3.879729081 | H21: /lb (gain sold)
B23: Total Costs | F23: =Summary!E39 -> 2737.376634 | H23: total costs
E24: - | F24: =Summary!E11 -> 1553.653846 | H24: feeder cost
E25: ÷ | F25: =Input!E24 -> 285 | H25: lbs gained weight
E26: = | F26: =(F23-F24)/F25 -> 4.153413292 | H26: /lb (gain sold)
A27: Breakeven selling price (shrunk weight)
B28: Operating Costs | F28: =Summary!E23 -> 2624.176634 | H28: operating costs
E29: ÷ | F29: =Input!E9-(Input!E9*(Input!E12/100)) -> 1012 | H29: lbs shrunk weight
E30: = | F30: =F28/F29 -> 2.593059915 | H30: /lb
B32: Operating & Labour Costs | F32: =Summary!E23+Summary!E37 -> 2702.176634 | H32: operating & labour
E33: ÷ | F33: =Input!E9-(Input!E9*(Input!E12/100)) -> 1012 | H33: lbs shrunk weight
E34: = | F34: =F32/F33 -> 2.670135014 | H34: /lb
B36: Operating & Fixed | F36: =Summary!E35 -> 2659.376634 | H36: oper. & fixed costs
E37: ÷ | F37: =Input!E9-(Input!E9*(Input!E12/100)) -> 1012 | H37: lbs shrunk weight
E38: = | F38: =F36/F37 -> 2.627842524 | H38: /lb
B40: Total Costs | F40: =Summary!E39 -> 2737.376634 | H40: total costs
E41: ÷ | F41: =Input!E9-(Input!E9*(Input!E12/100)) -> 1012 | H41: lbs shrunk weight
E42: = | F42: =F40/F41 -> 2.704917623 | H42: /lb
A44: Breakeven purchase price (shrunk weight)
B45: Operating Costs | F45: =Input!E9-(Input!E9*(Input!E12/100)) -> 1012 | H45: lbs shrunk weight
E46: x | F46: =Input!E10 -> 200 | H46: $/cwt selling price
E47: = | F47: =F45*F46/100 -> 2024 | H47: income
E48: - | F48: =Summary!E23-Summary!E11 -> 1070.522788 | H48: operating less feeder cost
E49: ÷ | F49: =Input!E7 -> 750 | H49: lbs purchase weight
E50: = | F50: =(F47-F48)/F49 -> 1.271302949 | H50: /lb
B52: Operating & Labour Costs | F52: =F45 -> 1012 | H52: lbs shrunk weight
E53: x | F53: =F46 -> 200 | H53: $/cwt selling price
E54: = | F54: =F47 -> 2024 | H54: income
E55: - | F55: =Summary!E23+Summary!E37-Summary!E11 -> 1148.522788 | H55: operating less feeder cost
E56: ÷ | F56: =F49 -> 750 | H56: lbs purchase weight
E57: = | F57: =(F54-F55)/F56 -> 1.167302949 | H57: /lb
B59: Operating & Fixed | F59: =F45 -> 1012 | H59: lbs shrunk weight
E60: x | F60: =F46 -> 200 | H60: $/cwt selling price
E61: = | F61: =F59*F60/100 -> 2024 | H61: income
E62: - | F62: =Summary!E35-Summary!E11 -> 1105.722788 | H62: op. & fixed less feeder cost
E63: ÷ | F63: =F49 -> 750 | H63: lbs purchase weight
E64: = | F64: =(F61-F62)/F63 -> 1.224369616 | H64: /lb
B66: Total Costs | F66: =F45 -> 1012 | H66: lbs shrunk weight
E67: x | F67: =F46 -> 200 | H67: $/cwt selling price
E68: = | F68: =F66*F67/100 -> 2024 | H68: income
E69: - | F69: =Summary!E39-Summary!E11 -> 1183.722788 | H69: total less feeder cost
E70: ÷ | F70: =F49 -> 750 | H70: lbs purchase weight
E71: = | F71: =(F68-F69)/F70 -> 1.120369616 | H71: /lb
J74: October, 2022
